bitfinex/quotes_ETHUSD_20250217
["timestamp","ask_amount","ask_price","bid_price","bid_amount"]
[1739816808879,0.813717,2726.2,2725.6,3.6689]
[1739816808880,0.813717,2726.2,2725.4,3.66906]
[1739816809054,3.66819,2726.2,2725.6,3.66888]
[1739816809260,3.66826,2726.1,2725.6,3.66888]
[1739816809432,3.66844,2726.0,2725.4,3.66909]
[1739816809775,0.7614,2725.8,2725.3,3.6692]
[1739816809926,4.43016,2725.8,2725.2,3.66936]
[1739816810265,0.809874,2725.7,2725.3,3.6693]
[1739816810642,0.809874,2725.7,2725.2,3.66936]
[1739816810643,3.71480507,2725.6,2725.1,3.0]
[1739816810843,4.478654,2725.7,2724.9,0.7857]
[1739816810844,0.809874,2725.7,2725.2,3.66937]
[1739816811354,3.6688,2725.7,2725.2,3.66937]
[1739816811733,7.33766,2725.7,2725.2,3.66937]
[1739816811930,3.6688,2725.7,2725.2,3.66937]
[1739816812516,0.7614,2725.8,2725.2,3.66937]
[1739816812517,0.7614,2725.8,2725.3,3.66931]
[1739816812721,4.43012,2725.8,2725.3,3.66931]
[1739816813130,3.66879,2725.7,2725.2,3.66945]
[1739816813417,0.443019,2725.6,2725.2,3.66944]
[1739816813823,0.443019,2725.6,2725.2,3.66937]
[1739816814162,3.66985,2725.0,2724.4,3.67039]
[1739816814331,0.80067872,2724.9,2724.4,3.67045]
[1739816814537,0.7548,2724.9,2724.6,3.67013]
[1739816814745,0.7548,2724.9,2724.7,3.66999]
[1739816814960,0.7548,2724.9,2724.8,3.66999]
[1739816815132,0.7548,2725.3,2724.8,3.66999]
[1739816815333,0.7548,2725.3,2724.7,3.67011]
[1739816815334,0.442407,2725.2,2724.7,3.67011]
[1739816815647,0.442407,2725.2,2724.9,3.66979]
[1739816816136,0.442407,2725.2,2724.4,3.67049]
[1739816816332,0.442407,2725.2,2725.0,3.66962]
[1739816816534,0.7548,2725.3,2725.1,3.66949]
[1739816816724,0.7548,2725.3,2725.0,3.66962]
[1739816816924,0.7548,2725.3,2725.2,3.66945]
[1739816817265,1.197819,2725.6,2725.1,3.66957]
[1739816817424,1.197819,2725.6,2725.3,3.66922]
[1739816817946,1.197819,2725.6,2725.2,3.66945]
[1739816818321,0.4866599,2725.5,2725.3,0.05762938]
[1739816818553,1.197819,2725.6,2725.3,3.72686938]
[1739816818855,1.197819,2725.6,2725.1,3.6695]
[1739816818856,0.7548,2726.2,2725.5,3.66905]
[1739816819048,4.42297,2726.2,2725.6,3.72608438]
[1739816819259,0.7548,2726.2,2725.7,3.66867]
[1739816819623,0.7548,2726.2,2725.9,3.66847]
[1739816819845,3.66824,2726.1,2725.8,0.05703775]
[1739816820051,3.66824,2726.1,2725.6,3.66882]
[1739816820247,3.66824,2726.1,2725.5,3.66895]
[1739816820455,0.7548,2726.2,2725.7,0.05735113]
[1739816820634,0.7548,2726.2,2725.7,3.66866]
[1739816820837,4.42293,2726.2,2725.8,0.0574154]
[1739816821041,4.865223,2726.2,2725.8,0.0574154]
[1739816821377,4.865223,2726.2,2725.7,3.66866]
[1739816821579,1.197093,2726.2,2725.9,0.05725958]
[1739816821792,3.66736,2726.8,2726.1,3.66824]
[1739816821938,3.66757,2726.6,2726.1,3.66824]
[1739816822134,0.7783,2726.7,2725.9,3.66846]
[1739816822362,4.44627,2726.3,2726.2,0.05686971]
[1739816822636,4.44627,2726.3,2724.8,4.48889]
[1739816822637,3.66902,2725.6,2724.8,4.48889]
[1739816822838,4.46182,2725.5,2724.8,3.66999]
[1739816823036,0.7927,2725.5,2725.0,3.66972]
[1739816823237,0.7927,2725.5,2725.2,3.66945]
[1739816823663,4.45713,2725.8,2725.3,0.05793448]
[1739816823846,3.66885,2725.7,2725.3,0.05793448]
[1739816824056,0.445725,2725.6,2725.0,3.66962]
[1739816824299,3.66903,2725.6,2725.1,0.0581712]
[1739816824773,3.66899,2725.6,2725.1,0.0581712]
[1739816825337,0.7884,2725.2,2725.1,0.0581712]
[1739816825534,4.45785,2725.2,2725.1,0.0581712]
[1739816825784,4.45785,2725.2,2724.7,3.67008]
[1739816825954,0.7884,2725.2,2725.1,0.0581712]
[1739816826260,1.601112,2725.2,2725.1,0.0581712]
[1739816826544,1.601112,2725.2,2724.6,3.67017]
[1739816826974,5.270582,2725.2,2724.7,0.05864472]
[1739816827203,3.6697,2725.1,2724.7,0.05864472]
[1739816827478,4.45839,2724.8,2724.3,0.1480934]
[1739816827639,3.6704,2724.5,2724.3,0.1480934]
[1739816827842,3.67035,2724.6,2724.4,0.05899996]
[1739816828173,3.67039,2724.5,2724.4,0.05899996]
[1739816828374,4.45846,2724.8,2724.4,0.05899996]
[1739816828597,4.115976,2724.7,2724.4,0.05899996]
[1739816828756,4.115976,2724.7,2724.3,0.1480934]
[1739816828953,3.67026,2724.6,2724.3,0.1480934]
[1739816829172,3.67026,2724.6,2724.4,0.05899996]
[1739816829894,3.67039,2724.5,2724.4,0.05899996]
[1739816830099,4.4490296,2724.5,2724.4,0.05899996]
[1739816830417,0.7786396,2724.5,2724.4,0.05899996]
[1739816831075,3.67028,2724.6,2724.4,0.05899996]
[1739816831489,3.67016,2724.7,2724.4,0.05899996]
[1739816831992,3.67016,2724.7,2724.3,0.1480934]
[1739816831993,7.3404,2724.7,2724.3,0.1480934]
[1739816832163,3.67016,2724.7,2724.3,0.1480934]
[1739816832369,3.67016,2724.7,2724.4,0.05928778]
[1739816832663,0.445856,2724.6,2724.4,0.05928778]
[1739816833190,0.445856,2724.6,2724.3,0.1480934]
[1739816833362,3.67013,2724.7,2724.3,0.1480934]
[1739816833580,0.7884,2724.8,2724.3,0.1480934]
[1739816833581,4.45839,2724.8,2724.4,0.05964813]
[1739816834017,0.7884,2724.8,2724.4,3.73006813]
[1739816834231,0.7884,2724.8,2724.5,3.67031]
[1739816834574,0.4482412,2725.0,2724.6,0.05940128]
[1739816834787,8.93965,2725.1,2724.6,0.05940128]
[1739816834788,0.7609,2725.1,2724.8,3.66999]
[1739816835202,0.7609,2725.1,2724.9,0.0590461]
[1739816836003,3.66941,2725.3,2724.9,0.0590461]
[1739816836310,0.7609,2725.4,2724.9,0.0590461]
[1739816836513,0.7609,2725.4,2725.0,3.66964]
[1739816836732,4.47748,2725.7,2725.0,3.66964]
[1739816836893,0.447748,2725.6,2725.1,0.05877931]
[1739816837219,0.447748,2725.6,2725.1,3.72828931]
[1739816837585,3.66928,2725.4,2725.1,0.05877931]
[1739816837786,4.47815,2725.2,2725.1,0.05877931]
[1739816838219,4.47815,2725.2,2724.7,3.67012]
[1739816838419,0.8087,2725.2,2725.1,0.05863664]
[1739816838614,0.8087,2725.2,2724.7,3.67012]
[1739816838915,0.8087,2725.2,2724.6,3.67018]
[1739816839111,0.8087,2725.2,2724.4,0.7631]
[1739816839112,0.8087,2725.2,2724.8,0.05899177]
[1739816839324,3.66982,2725.0,2724.5,3.67038]
[1739816839528,0.814811,2725.0,2724.9,0.05887339]
[1739816839679,0.7924,2724.8,2724.3,0.1480934]
[1739816839881,3.67034,2724.6,2724.3,0.1480934]
[1739816840081,3.67034,2724.6,2724.4,0.05946541]
[1739816840313,0.7924,2724.8,2724.4,0.05946541]
[1739816840515,0.7924,2724.8,2724.4,3.72997541]
[1739816840718,3.67018,2724.7,2724.4,0.05946541]
[1739816840922,3.67034,2724.6,2724.4,0.05946541]
[1739816841283,4.4624,2724.8,2724.4,0.05946541]
[1739816841634,3.6702,2724.7,2724.4,0.05946541]
[1739816841924,4.4624,2724.8,2724.4,0.05946541]
[1739816841925,3.67039,2724.5,2724.4,0.05946541]
[1739816842792,0.7924,2725.3,2724.4,0.89266541]
[1739816842996,3.66966,2725.1,2724.5,3.67032]
[1739816843220,3.66966,2725.1,2724.4,0.89266541]
[1739816843221,3.67019,2724.7,2724.4,0.05946541]
[1739816843428,4.46274,2724.6,2724.3,0.1480934]
[1739816843614,5.276033,2724.6,2724.3,0.1480934]
[1739816844382,1.605693,2724.6,2724.3,0.1480934]
[1739816844600,1.605693,2724.6,2724.3,3.8186634]
[1739816844817,0.7924,2724.6,2724.3,3.8186634]
[1739816845020,0.7924,2724.6,2724.3,0.1480934]
[1739816845208,0.7924,2724.6,2724.3,3.8187434]
[1739816846103,0.7924,2724.6,2724.3,0.1480934]
[1739816846424,0.7924,2724.6,2724.3,3.8187434]
[1739816846729,1.23864,2724.6,2724.3,3.8187434]
[1739816847429,1.23864,2724.6,2724.3,0.1480934]
[1739816847793,1.23864,2724.6,2724.3,3.8187034]
[1739816848302,0.8324,2725.1,2724.6,3.67023]
[1739816848521,0.8324,2725.1,2724.7,3.72925033]
[1739816848827,0.741748,2725.6,2724.7,3.72925033]
[1739816848828,0.8324,2725.4,2725.0,3.66959]
[1739816849029,0.447748,2725.6,2725.1,3.66951]
[1739816849230,0.447748,2725.6,2725.2,3.66934]
[1739816849389,0.8324,2725.7,2725.1,0.05871422]
[1739816849728,4.50128,2725.7,2725.2,3.72797085]
[1739816850535,0.8324,2725.7,2725.2,3.72797085]
[1739816850701,3.66898,2725.6,2725.2,0.05859085]
[1739816850902,0.8324,2725.7,2725.0,8.10738]
[1739816850903,3.66905,2725.5,2725.0,8.10738]
[1739816851110,4.119195,2725.5,2725.1,0.05870921]
[1739816851310,3.66918,2725.4,2725.1,0.05870921]
[1739816851510,0.801,2725.2,2724.6,3.67022]
[1739816851715,3.66967,2725.1,2724.7,0.05904009]
[1739816852124,0.801,2725.2,2724.7,0.05904009]
[1739816852324,0.447039,2725.1,2724.7,0.05904009]
[1739816852637,3.66992,2724.9,2724.7,0.05904009]
[1739816852999,3.66999,2724.8,2724.3,3.8186934]
[1739816853402,3.66974,2725.0,2724.4,3.6704]
[1739816853647,3.66974,2725.0,2724.5,3.67039]
[1739816853936,3.66974,2725.0,2724.4,3.6704]
[1739816853937,4.0815579,2724.9,2724.4,3.6704]
[1739816854140,4.0815579,2724.9,2724.4,7.34086]
[1739816854344,0.4116779,2724.9,2724.5,3.67036]
[1739816854549,0.4116779,2724.9,2724.3,0.1480934]
[1739816854550,3.67002,2724.8,2724.3,0.1480934]
[1739816854706,0.4116779,2724.9,2724.3,0.1480934]
[1739816855045,3.66979,2725.0,2724.3,3.8187434]
[1739816855337,3.67018,2724.7,2724.3,0.1480934]
[1739816855540,4.42568,2724.7,2724.3,0.1480934]
[1739816855753,4.47156446,2724.7,2724.3,0.1480934]
[1739816856060,0.7555,2724.7,2724.3,3.8187434]
[1739816856557,0.447039,2725.1,2724.3,0.1480934]
[1739816856751,0.4872059,2725.0,2724.6,3.67023]
[1739816856952,0.4872059,2725.0,2724.6,7.34042]
[1739816857264,0.7555,2725.2,2724.3,0.1480934]
[1739816857265,0.7555,2725.2,2724.7,3.67006]
[1739816857451,4.42502,2725.2,2724.7,3.67006]
[1739816858055,4.42502,2725.2,2724.5,3.67031]
[1739816858056,0.7555,2725.2,2724.9,3.66978]
[1739816858355,5.27,2725.4,2725.0,3.66968]
[1739816858706,5.31587186,2725.4,2724.9,0.753]
[1739816858911,4.32558169,2725.3,2724.8,3.66986]
[1739816859109,0.65625169,2725.3,2725.0,3.66969]
[1739816859432,8.93922,2725.4,2724.9,3.66984]
[1739816860039,3.66946,2725.2,2724.8,3.66986]
[1739816860440,3.66946,2725.2,2724.6,4.42318]
[1739816860740,3.66946,2725.2,2724.7,3.67006]
[1739816860945,3.66946,2725.2,2724.8,3.66995]
[1739816861241,8.93918,2725.4,2725.0,3.66967]
[1739816861449,3.66932,2725.3,2724.7,3.67012]
[1739816861645,1.246645,2725.5,2724.3,4.6147534]
[1739816861646,3.6699,2724.9,2724.3,4.6147534]
[1739816861817,4.46559,2725.5,2724.8,3.66991]
[1739816862023,3.66934,2725.3,2724.8,3.66991]
[1739816862222,8.13477,2725.5,2724.9,3.66985]
[1739816862623,4.46563,2725.5,2724.9,3.66985]
[1739816862821,3.66918,2725.4,2725.0,3.66966]
[1739816863022,3.66918,2725.4,2724.8,0.7961]
[1739816863325,3.66918,2725.4,2724.5,7.48833321]
[1739816863326,3.66972,2725.0,2724.9,0.05885836]
[1739816863525,3.66972,2725.0,2724.5,0.7961]
[1739816863526,3.66993,2724.9,2724.5,0.7961]
[1739816863853,0.366972,2725.0,2724.7,3.67008]
[1739816864035,0.366972,2725.0,2724.7,3.67012]
[1739816864355,3.66932,2725.3,2724.8,3.66993]
[1739816864553,7.33876,2725.3,2724.7,3.67004]
[1739816864730,3.66932,2725.3,2724.6,3.67026]
[1739816864930,3.66932,2725.3,2724.8,3.66991]
[1739816865153,0.813496,2725.3,2724.9,3.66979]
[1739816865355,0.7965,2725.5,2725.0,3.66972]
[1739816865658,1.1209,2726.1,2725.1,3.66947]
[1739816865957,3.66892,2725.6,2725.1,3.66947]
[1739816866255,3.66873,2725.8,2725.3,3.66925]
[1739816866432,7.3375,2725.8,2725.3,3.66925]
[1739816866634,8.07125,2725.8,2725.3,3.66925]
[1739816867257,3.66881,2725.7,2725.3,3.66925]
[1739816867455,0.73375,2725.8,2725.3,7.33848]
[1739816867754,4.40246,2725.8,2725.3,3.66923]
[1739816868758,3.6688,2725.7,2725.2,0.7842]
[1739816868955,4.40246,2725.8,2725.2,0.7842]
[1739816869143,7.33747,2725.8,2725.2,4.45354]
[1739816869346,3.66882,2725.7,2725.2,4.45354]
[1739816869545,0.8269,2726.1,2725.2,0.7842]
[1739816869879,3.66881,2725.7,2725.2,0.7842]
[1739816870080,7.33768,2725.7,2725.2,0.7842]
[1739816870286,8.071448,2725.7,2725.2,0.7842]
[1739816870442,4.402578,2725.7,2725.2,0.7842]
[1739816870643,7.33768,2725.7,2725.2,0.7842]
[1739816870846,3.66891,2725.6,2725.2,0.7842]
[1739816871657,3.66865,2725.8,2725.2,0.7842]
[1739816871984,3.66885,2725.7,2725.2,4.45355]
[1739816872481,3.66892,2725.6,2725.2,0.7842]
[1739816872651,3.66907,2725.5,2725.2,0.7842]
[1739816872851,3.66907,2725.5,2725.0,3.66963]
[1739816873046,3.66892,2725.6,2725.2,3.66944]
[1739816873484,3.66892,2725.6,2725.1,7.33901]
[1739816873684,3.66873,2725.8,2725.3,3.6693]
[1739816873889,3.66879,2725.7,2725.3,3.6693]
[1739816874987,0.366873,2725.8,2725.0,3.66972]
[1739816875148,4.49524,2726.1,2725.6,3.66882]
[1739816875586,3.6684,2726.0,2725.4,7.33817]
[1739816875785,3.6684,2726.0,2725.5,3.66898]
[1739816876853,3.66851,2725.9,2725.4,3.66909]
[1739816877442,3.66851,2725.9,2725.5,3.66899]
[1739816877749,3.66851,2725.9,2725.6,0.05770458]
[1739816878347,4.484734,2726.0,2725.6,0.05770458]
[1739816878715,4.484734,2726.0,2725.5,3.66902]
[1739816878716,3.66856,2725.9,2725.5,3.66902]
[1739816879032,3.66856,2725.9,2725.6,0.05770458]
[1739816879233,0.816364,2726.0,2725.6,0.05770458]
[1739816879528,0.816364,2726.0,2725.6,3.66885]
[1739816879732,0.816364,2726.0,2725.5,3.66892]
[1739816879938,4.484814,2726.0,2725.6,0.05770458]
[1739816880304,0.816364,2726.0,2725.6,0.05770458]
[1739816880633,3.66873,2725.8,2725.6,0.05770458]
[1739816880835,3.66851,2725.9,2725.6,0.05770458]
[1739816881040,4.484754,2726.0,2725.5,3.66896]
[1739816881251,4.46534,2726.3,2725.8,3.6686]
[1739816881540,3.66789,2726.4,2725.9,3.72558453]
[1739816881715,3.66835,2726.1,2725.9,0.05716453]
[1739816881915,0.04585663,2726.0,2725.1,0.8248]
[1739816882122,3.66871,2725.8,2725.3,3.6693]
[1739816882423,3.66873,2725.8,2725.4,0.0577361]
[1739816882757,3.66888,2725.7,2725.2,3.66945]
[1739816882909,3.66888,2725.7,2725.5,0.05761777]
[1739816883112,4.116833,2725.8,2725.2,3.66945]
[1739816883313,3.66886,2725.7,2725.3,3.72717444]
[1739816883542,3.66886,2725.7,2725.3,3.72709444]
[1739816883714,0.448183,2725.8,2725.3,3.72709444]
[1739816883920,8.15025,2725.9,2725.4,3.66917]
[1739816884119,4.48162,2725.9,2725.5,0.05762277]
[1739816884444,4.48162,2725.9,2725.1,0.8248]
[1739816884445,0.8131,2725.9,2725.1,0.8248]
[1739816884615,3.66884,2725.7,2725.6,0.05750444]
[1739816884805,0.8131,2725.9,2725.4,3.66907]
[1739816885141,4.48162,2725.9,2725.5,0.05762527]
[1739816885349,5.29663,2725.9,2725.5,0.05762527]
[1739816886247,1.62811,2725.9,2725.5,3.72659527]
[1739816886444,5.29662,2725.9,2725.5,3.72659527]
[1739816887650,3.66867,2725.8,2725.5,0.05762527]
[1739816887946,0.0458631,2725.7,2725.1,0.8248]
[1739816888107,3.66927,2725.4,2724.9,3.66978]
[1739816888452,3.66927,2725.4,2725.0,0.05821453]
[1739816888608,0.04586783,2725.3,2725.0,0.05821453]
[1739816888813,3.66921,2725.4,2725.0,0.05821453]
[1739816889022,4.43055,2725.7,2725.2,3.66932]
[1739816889228,3.66913,2725.5,2725.1,0.05809616]
[1739816889408,3.66918,2725.4,2725.3,0.05785944]
[1739816889611,3.66932,2725.3,2725.2,0.0579778]
[1739816889820,3.66945,2725.2,2724.7,3.67004]
[1739816890049,3.66918,2725.4,2724.8,3.66986]
[1739816890252,3.66946,2725.2,2724.8,3.66986]
[1739816890614,3.66946,2725.2,2724.7,3.67004]
[1739816890815,0.366918,2725.3,2724.6,0.8031]
[1739816891015,4.111985,2725.6,2725.0,3.66962]
[1739816891554,3.66912,2725.5,2725.0,3.66962]
[1739816891709,3.66912,2725.5,2725.0,7.33927]
[1739816891915,4.111985,2725.6,2725.0,3.66962]
[1739816892140,3.66946,2725.2,2724.7,3.67005]
[1739816892379,3.66946,2725.2,2724.6,4.47325]
[1739816892544,3.66946,2725.2,2724.8,3.66997]
[1739816892728,3.66928,2725.4,2724.8,3.66997]
[1739816892940,4.036308,2725.3,2724.8,3.66997]
[1739816893137,4.036308,2725.3,2724.9,3.66983]
[1739816893345,4.036308,2725.3,2725.0,0.0583071]
[1739816893851,0.366928,2725.3,2725.0,0.0583071]
[1739816894649,3.66905,2725.5,2725.0,3.7279171]
[1739816894849,3.66919,2725.4,2725.0,3.7279171]
[1739816895450,3.66932,2725.3,2725.0,0.0583071]
[1739816895753,3.66932,2725.3,2724.8,3.66986]
[1739816895928,3.66932,2725.3,2724.9,3.72833304]
[1739816896479,3.6692,2725.4,2724.9,3.72833304]
[1739816896676,0.7781385,2725.4,2724.9,0.05854304]
[1739816896971,3.6696,2725.1,2724.7,3.67009]
[1739816897175,0.8298,2725.2,2724.6,4.47329]
[1739816897176,4.49926,2725.2,2724.6,4.47329]
[1739816897477,4.49926,2725.2,2724.8,3.72864393]
[1739816897478,3.66946,2725.2,2724.8,3.72864393]
[1739816897675,3.66946,2725.2,2724.8,3.66998]
[1739816897970,4.42078,2725.4,2724.9,0.05854555]
[1739816898173,4.1555635,2725.4,2725.0,3.66969]
[1739816898371,4.1555635,2725.4,2724.9,0.05854555]
[1739816898372,3.66937,2725.3,2724.9,0.05854555]
[1739816898671,3.66945,2725.2,2725.1,0.05835384]
[1739816898833,7.3388,2725.3,2725.1,0.05835384]
[1739816899036,7.33881,2725.3,2724.8,3.66992]
[1739816899277,3.6696,2725.1,2724.6,4.4733]
[1739816899752,0.78251935,2725.2,2724.7,0.05882737]
[1739816900082,3.66937,2725.3,2724.8,3.66999]
[1739816900241,3.66937,2725.3,2724.8,3.40999]
[1739816900435,3.66937,2725.3,2724.9,0.05857557]
[1739816900663,3.66937,2725.3,2724.8,3.66989]
[1739816901064,0.4863835,2725.4,2724.9,0.05858558]
[1739816901065,3.66951,2725.2,2724.9,0.05858558]
[1739816901455,3.6693,2725.4,2724.9,3.72842558]
[1739816901639,3.66918,2725.4,2724.9,3.72842558]
[1739816902280,3.66935,2725.3,2724.9,3.72842558]
[1739816902437,3.66935,2725.3,2724.9,0.05858558]
[1739816902637,0.443055,2725.6,2724.9,0.05858558]
[1739816902860,3.66922,2725.4,2724.9,0.05858558]
[1739816903064,3.66922,2725.4,2724.7,3.67004]
[1739816903279,3.66932,2725.3,2724.8,3.66989]
[1739816903675,0.443055,2725.6,2724.9,0.05858058]
[1739816903877,3.66967,2725.1,2724.9,0.05858058]
[1739816904051,3.66975,2725.0,2724.6,3.6702]
[1739816904640,3.66975,2725.0,2724.4,0.8223]
[1739816904641,3.66975,2725.0,2724.4,4.49282]
[1739816904847,3.66975,2725.0,2724.3,3.8186634]
[1739816904848,3.67039,2724.6,2724.3,0.1480934]
[1739816905061,0.04588047,2724.5,2724.3,0.1480934]
[1739816905262,3.67039,2724.6,2724.3,0.1480934]
[1739816906268,0.817,2724.7,2724.3,0.1480934]
[1739816906480,3.67001,2724.8,2724.3,3.8187234]
[1739816906481,7.34012,2724.8,2724.3,3.8187234]
[1739816906679,3.67014,2724.7,2724.3,3.8187234]
[1739816906977,3.67014,2724.7,2724.3,0.1480934]
[1739816907478,0.7522,2724.9,2724.3,3.8186534]
[1739816907479,4.42207,2724.9,2724.3,3.8186534]
[1739816907679,3.66987,2724.9,2724.4,3.67047]
[1739816907846,3.67006,2724.8,2724.3,3.8186534]
[1739816908046,4.5256775,2724.9,2724.4,3.67045]
[1739816908248,4.5256775,2724.9,2724.4,3.72770813]
[1739816908483,4.115215,2725.0,2724.4,3.72770813]
[1739816908680,3.66988,2724.9,2724.5,3.67036]
[1739816908856,3.66988,2724.9,2724.4,3.72776813]
[1739816909257,3.66988,2724.9,2724.5,3.67039]
[1739816909600,4.44258,2725.1,2724.7,3.67011]
[1739816909601,3.6696,2725.1,2724.7,3.67011]
[1739816909902,3.66946,2725.2,2724.7,3.67011]
[1739816910596,3.66946,2725.2,2724.8,0.05687959]
[1739816910797,7.781556,2725.2,2724.8,0.05687959]
[1739816911089,7.781556,2725.2,2724.9,0.05676121]
[1739816911244,7.781556,2725.2,2724.7,3.67011]
[1739816911447,3.66946,2725.2,2724.8,3.66992]
[1739816911761,3.66946,2725.2,2724.8,3.72679959]
[1739816912292,3.66946,2725.2,2724.8,0.05687959]
[1739816912648,0.7557,2725.4,2724.6,4.47436]
[1739816912649,3.66932,2725.3,2724.7,3.67012]
[1739816912843,4.42491,2725.4,2724.8,0.05682954]
[1739816913089,3.66947,2725.2,2724.8,3.66997]
[1739816913275,3.66947,2725.2,2724.9,0.05671115]
[1739816913476,3.66947,2725.2,2724.7,3.67011]
[1739816913706,5.7387765,2725.4,2724.7,3.67003]
[1739816913846,4.42498,2725.4,2724.8,0.05682454]
[1739816914046,8.09428,2725.4,2724.9,3.66983]
[1739816914241,4.42498,2725.4,2725.0,0.05658777]
[1739816914448,8.09424,2725.4,2725.0,0.05658777]
[1739816914898,3.66926,2725.4,2725.0,3.72630777]
[1739816915061,3.66926,2725.4,2725.0,0.05658777]
[1739816915597,3.66906,2725.5,2725.0,3.72623777]
[1739816916288,3.66926,2725.4,2725.0,3.72623777]
[1739816916490,3.66933,2725.3,2725.0,0.05658777]
[1739816916899,3.6692,2725.4,2724.9,3.66981]
[1739816917048,3.6692,2725.4,2725.0,0.05658777]
[1739816917599,3.66948,2725.2,2725.0,0.05658777]
[1739816918004,3.66948,2725.2,2724.7,3.67007]
[1739816918157,3.66948,2725.2,2725.1,0.0564694]
[1739816918352,3.66948,2725.2,2724.7,3.67007]
[1739816918683,3.66948,2725.2,2724.8,0.05682454]
[1739816918882,3.66947,2725.2,2724.8,3.66997]
[1739816919287,3.66947,2725.2,2724.9,0.05659104]
[1739816919492,4.51892785,2725.2,2724.9,0.05659104]
[1739816919669,0.82277438,2725.1,2724.3,4.6022834]
[1739816919888,3.67034,2724.6,2724.3,0.1480934]
[1739816920092,3.67034,2724.6,2724.4,0.05716054]
[1739816920254,5.181347,2724.5,2724.4,0.05716054]
[1739816924661,0.7769,2724.5,2724.4,0.05716054]
[1739816924960,3.67034,2724.6,2724.4,0.05716054]
[1739816925700,4.47955,2724.7,2724.4,0.05716054]
[1739816925911,0.8094,2725.0,2724.4,0.85766054]
[1739816926109,3.6701,2724.8,2724.4,0.85766054]
[1739816926256,0.8094,2725.0,2724.4,0.85766054]
[1739816926257,3.66985,2724.9,2724.4,0.85766054]
[1739816926458,3.67012,2724.7,2724.4,0.85766054]
[1739816926857,3.66985,2724.9,2724.4,4.52811054]
[1739816927091,3.66999,2724.8,2724.4,4.52811054]
[1739816927293,3.66999,2724.8,2724.4,0.85766054]
[1739816927556,0.84945785,2725.2,2724.4,0.85766054]
[1739816927786,3.66999,2724.8,2724.4,0.8005]
[1739816927990,0.366999,2724.8,2724.3,0.1480934]
[1739816928172,3.67032,2724.6,2724.5,0.05715975]
[1739816928392,3.67032,2724.6,2724.3,0.1480934]
[1739816928393,3.67039,2724.5,2724.3,0.1480934]
[1739816928960,3.67032,2724.6,2724.3,0.1480934]
[1739816929211,4.47949,2724.8,2724.3,0.1480934]
[1739816929416,3.6704,2724.5,2724.3,0.1480934]
[1739816929560,7.34064,2724.6,2724.3,0.1480934]
[1739816929760,3.67027,2724.6,2724.3,0.1480934]
[1739816931107,3.67048,2724.5,2724.3,0.1480934]
[1739816932198,3.67027,2724.6,2724.3,0.1480934]
[1739816933477,3.6702,2724.7,2724.3,0.1480934]
[1739816933677,3.6702,2724.7,2724.3,3.8186934]
[1739816933872,3.6702,2724.7,2724.3,0.1480934]
[1739816934091,4.485156,2724.7,2724.3,0.1480934]
[1739816934602,8.155406,2724.7,2724.3,0.1480934]
[1739816934763,8.155376,2724.7,2724.3,0.1480934]
[1739816935102,3.67026,2724.6,2724.3,0.1480934]
[1739816935311,3.6704,2724.5,2724.3,0.1480934]
[1739816935798,4.4859566,2724.5,2724.3,0.1480934]
[1739816935999,3.67053,2724.4,2724.3,0.1480934]
[1739816936363,3.7164175,2724.4,2724.3,0.1480934]
[1739816936914,4.46983,2724.4,2724.3,0.1480934]
[1739816937993,4.46983,2724.4,2724.3,0.20562514]
[1739816938200,3.67053,2724.4,2724.3,0.20562514]
[1739816939601,4.48914155,2724.4,2724.3,0.1480934]
[1739816940568,4.48914155,2724.4,2724.3,0.20562514]
[1739816940873,4.48914155,2724.4,2724.3,0.1480934]
[1739816942318,11.05853456,2724.4,2724.3,5.14e-06]
[1739816942520,0.7745,2723.5,2722.1,0.005]
[1739816942719,3.81798321,2722.8,2722.2,0.7822]
[1739816942929,3.81798321,2722.8,2722.2,0.84016625]
[1739816942930,3.67306,2722.6,2722.2,0.84016625]
[1739816943092,4.47101,2722.5,2722.1,0.005]
[1739816943290,0.04591486,2722.4,2722.3,0.05784764]
[1739816943635,7.34585,2722.7,2722.3,0.05784764]
[1739816943789,3.6729,2722.7,2722.1,0.005]
[1739816943984,3.67296,2722.6,2722.1,0.005]
[1739816944203,3.67326,2722.4,2722.2,0.05796625]
[1739816944450,3.67336,2722.3,2722.2,0.05796625]
[1739816944654,3.719179,2722.4,2722.2,0.05796625]
[1739816944790,0.04591958,2722.3,2722.2,0.05796625]
[1739816945288,4.86467796,2722.3,2722.2,0.05796625]
[1739816945484,4.91059752,2722.3,2722.1,0.005]
[1739816945718,3.67349,2722.2,2722.1,0.005]
[1739816946136,6.71942401,2722.2,2722.1,0.005]
[1739816946449,8.99839852,2722.2,2722.1,0.005]
[1739816947230,9.72404862,2722.2,2722.1,0.005]
[1739816948713,9.90940701,2722.2,2722.1,0.005]
[1739816950329,9.67470701,2722.2,2721.6,0.1480934]
[1739816950529,11.85755321,2721.7,2721.6,0.1480934]
[1739816950733,12.15055321,2721.7,2721.6,0.1480934]
[1739816951431,11.60055321,2721.7,2721.6,0.1480934]
[1739816951616,0.8154,2721.7,2721.6,0.1480934]
[1739816951998,3.67412,2721.8,2721.6,0.1480934]
[1739816951999,3.67412,2721.8,2721.6,0.20608476]
[1739816952196,0.42476866,2722.8,2721.6,0.20608476]
[1739816952197,3.67269,2722.8,2721.7,0.7801]
[1739816952430,3.6731,2722.5,2721.9,3.67379]
[1739816952931,3.67325,2722.4,2722.0,0.05742391]
[1739816953090,3.6731,2722.5,2722.0,3.67376]
[1739816953293,4.122409,2722.7,2722.1,0.05730528]
[1739816953294,0.449519,2722.7,2722.1,0.05730528]
[1739816953829,3.67333,2722.4,2721.7,4.45423]
[1739816954037,3.67333,2722.4,2722.2,0.05718666]
[1739816954236,3.67333,2722.4,2721.8,3.67394]
[1739816954237,0.367333,2722.3,2721.8,3.67394]
[1739816954532,3.0,2722.5,2721.9,3.67387]
[1739816954732,6.81798321,2722.5,2721.9,0.05754255]
[1739816954896,3.67354,2722.2,2721.9,0.05754255]